fUST/lending_fUST_20260527
["ID","MTS","AMOUNT","RATE_DAILY","PERIOD"]
[423151476,1779894639000,-729.51634895,9.93e-05,2]
[423151479,1779894639000,-11463.32673851,9.931e-05,2]
[423151462,1779894639000,-553.42619574,9.93e-05,2]
[423151477,1779894639000,-152.6558633,9.931e-05,2]
[423151478,1779894639000,-7898.88376225,9.931e-05,2]
[423151480,1779894639000,-1156.02931374,9.931e-05,2]
[423151481,1779894639000,-150.17422277,0.00010006,2]
[423151484,1779894639000,-500.0,0.00010204,2]
[423151483,1779894639000,-500.0,0.00010204,2]
[423151485,1779894639000,-48425.46411316,0.00010206,2]
[423151457,1779894639000,-553.42619574,9.93e-05,2]
[423151482,1779894639000,-792.766697,0.00010106,2]
[423151469,1779894639000,-588.64422639,9.93e-05,2]
[423151486,1779894639000,-104419.539162,0.00010206,2]
[423151468,1779894639000,-588.64422639,9.93e-05,2]
[423151463,1779894639000,-553.42619574,9.93e-05,2]
[423151451,1779894639000,-553.42619574,9.93e-05,2]
[423151452,1779894639000,-553.42619574,9.93e-05,2]
[423151458,1779894639000,-553.42619574,9.93e-05,2]
[423151454,1779894639000,-553.42619574,9.93e-05,2]
[423151456,1779894639000,-553.42619574,9.93e-05,2]
[423151455,1779894639000,-553.42619574,9.93e-05,2]
[423151453,1779894639000,-553.42619574,9.93e-05,2]
[423151449,1779894639000,-553.42619574,9.93e-05,2]
[423151465,1779894639000,-553.42619574,9.93e-05,2]
[423151459,1779894639000,-553.42619574,9.93e-05,2]
[423151466,1779894639000,-553.42619574,9.93e-05,2]
[423151467,1779894639000,-553.42619574,9.93e-05,2]
[423151470,1779894639000,-588.64422639,9.93e-05,2]
[423151461,1779894639000,-439.18358919,9.93e-05,2]
[423151460,1779894639000,-114.24260655,9.93e-05,2]
[423151464,1779894639000,-553.42619574,9.93e-05,2]
[423151489,1779894641000,-849.0,0.00010206,2]
[423151488,1779894641000,-151.0,9.929e-05,2]
[423151494,1779894644000,-2318.2818666,0.00010206,2]
[423151497,1779894644000,-1418.9745,0.00010206,2]
[423151495,1779894644000,-275.79946348,0.00010206,2]
[423151503,1779894647000,-3708.55549784,0.00010206,2]
[423151502,1779894647000,-18529.37258802,0.00010206,2]
[423152984,1779895054000,171.010432,4.462e-05,2]
[423153119,1779895831000,-210.59926612,5.89e-05,2]
[423153127,1779895831000,-61.42894022,7.596e-05,2]
[423153121,1779895831000,-171.010432,5.949e-05,2]
[423153131,1779895831000,-248.50713403,7.89e-05,2]
[423153125,1779895831000,-238.57105978,7.596e-05,2]
[423153129,1779895831000,-6421.42930719,7.6e-05,2]
[423153117,1779895831000,-5000.0,5.801e-05,2]
[423153123,1779895831000,-171.010432,7.436e-05,2]
[423153150,1779895831000,-539.6195568,9.727e-05,2]
[423153137,1779895831000,-504.09390475,8.356e-05,2]
[423153143,1779895831000,-357.80399826,8.356e-05,2]
[423153141,1779895831000,-500.0,8.356e-05,2]
[423153135,1779895831000,-420.0,8.356e-05,2]
[423153147,1779895831000,-587.0,9.191e-05,2]
[423153139,1779895831000,-500.0,8.356e-05,2]
[423153144,1779895831000,-171.010432,8.924e-05,2]
[423153148,1779895831000,-539.6195568,9.727e-05,2]
[423153133,1779895831000,-508.87,8.356e-05,2]
[423153162,1779895832000,-500.44300907,9.826e-05,2]
[423153152,1779895832000,-539.6195568,9.727e-05,2]
[423153154,1779895832000,-539.6195568,9.727e-05,2]
[423153156,1779895832000,-3708.55549784,9.727e-05,2]
[423153158,1779895832000,-26527.83540782,9.728e-05,2]
[423153160,1779895832000,-4896.259849,9.739e-05,2]
[423153164,1779895832000,-631.95,9.826e-05,2]
[423153184,1779895832000,-393.90684644,9.727e-05,2]
[423153172,1779895832000,-32.82269149,9.826e-05,2]
[423153183,1779895832000,-500.0,8.356e-05,2]
[423153176,1779895832000,-500.0,9.826e-05,2]
[423153174,1779895832000,-467.17730851,9.826e-05,2]
[423153170,1779895832000,-500.0,9.826e-05,2]
[423153168,1779895832000,-500.0,9.826e-05,2]
[423153166,1779895832000,-179.04776855,9.826e-05,2]
[423153178,1779895832000,-199.54386399,9.826e-05,2]
[423153421,1779895838000,-539.6195568,9.727e-05,2]
[423153457,1779895838000,-500.0,9.827e-05,2]
[423153437,1779895838000,-539.6195568,9.727e-05,2]
[423153422,1779895838000,-539.6195568,9.727e-05,2]
[423153435,1779895838000,-539.6195568,9.727e-05,2]
[423153450,1779895838000,-500.0,9.827e-05,2]
[423153452,1779895838000,-501.41289747,9.827e-05,2]
[423153454,1779895838000,-500.0,9.827e-05,2]
[423153442,1779895838000,-539.6195568,9.727e-05,2]
[423153455,1779895838000,-500.0,9.827e-05,2]
[423153459,1779895838000,-500.0,9.827e-05,2]
[423153444,1779895838000,-300.8688962,9.826e-05,2]
[423153417,1779895838000,-539.6195568,9.727e-05,2]
[423153446,1779895838000,-500.0,9.827e-05,2]
[423153467,1779895838000,-500.0,9.923e-05,2]
[423153440,1779895838000,-539.6195568,9.727e-05,2]
[423153461,1779895838000,-500.0,9.827e-05,2]
[423153472,1779895838000,-500.0,9.923e-05,2]
[423153478,1779895838000,-500.0,9.923e-05,2]
[423153476,1779895838000,-500.0,9.923e-05,2]
[423153480,1779895838000,-500.0,9.923e-05,2]
[423153438,1779895838000,-539.6195568,9.727e-05,2]
[423153415,1779895838000,-145.71271036,9.727e-05,2]
[423153429,1779895838000,-539.6195568,9.727e-05,2]
[423153428,1779895838000,-539.6195568,9.727e-05,2]
[423153385,1779895838000,-500.0,7.596e-05,2]
[423153387,1779895838000,-302.72724855,7.596e-05,2]
[423153383,1779895838000,-500.0,7.596e-05,2]
[423153389,1779895838000,-197.27275145,7.596e-05,2]
[423153391,1779895838000,-500.0,7.596e-05,2]
[423153407,1779895838000,-500.0,7.596e-05,2]
[423153400,1779895838000,-500.0,7.596e-05,2]
[423153404,1779895838000,-500.0,7.596e-05,2]
[423153394,1779895838000,-500.0,7.596e-05,2]
[423153398,1779895838000,-477.34114189,7.596e-05,2]
[423153392,1779895838000,-500.0,7.596e-05,2]
[423153396,1779895838000,-502.23219048,7.596e-05,2]
[423153402,1779895838000,-379.45535758,7.596e-05,2]
[423153405,1779895838000,-500.0,7.596e-05,2]
[423153409,1779895838000,-533.4204095,7.596e-05,2]
[423153411,1779895838000,-507.06417352,7.596e-05,2]
[423153424,1779895838000,-539.6195568,9.727e-05,2]
[423153426,1779895838000,-539.6195568,9.727e-05,2]
[423153431,1779895838000,-539.6195568,9.727e-05,2]
[423153413,1779895838000,-500.0,8.356e-05,2]
[423153419,1779895838000,-539.6195568,9.727e-05,2]
[423153433,1779895838000,-539.6195568,9.727e-05,2]
[423153471,1779895838000,-220.60720598,9.923e-05,2]
[423153448,1779895838000,-280.33503571,9.827e-05,2]
[423153482,1779895838000,-500.0,9.923e-05,2]
[423153533,1779895838000,-500.0,9.923e-05,2]
[423153516,1779895838000,-500.62697601,9.923e-05,2]
[423153520,1779895838000,-500.29268445,9.923e-05,2]
[423153532,1779895838000,-500.28470861,9.923e-05,2]
[423153535,1779895838000,-500.0,9.923e-05,2]
[423153549,1779895838000,-500.0,9.928e-05,2]
[423153537,1779895838000,-500.0,9.923e-05,2]
[423153539,1779895838000,-500.0,9.923e-05,2]
[423153541,1779895838000,-500.0,9.928e-05,2]
[423153543,1779895838000,-232.86495608,9.928e-05,2]
[423153547,1779895838000,-500.0,9.928e-05,2]
[423153545,1779895838000,-526.18537576,9.928e-05,2]
[423153557,1779895838000,-500.0,9.928e-05,2]
[423153555,1779895838000,-500.0,9.928e-05,2]
[423153553,1779895838000,-500.0,9.928e-05,2]
[423153559,1779895838000,-500.0,9.928e-05,2]
[423153563,1779895838000,-586.89,9.928e-05,2]
[423153561,1779895838000,-500.0,9.928e-05,2]
[423153566,1779895838000,-500.0,9.928e-05,2]
[423153564,1779895838000,-500.0,9.928e-05,2]
[423153465,1779895838000,-3161.70442968,9.919e-05,2]
[423153514,1779895838000,-500.0,9.923e-05,2]
[423153518,1779895838000,-499.46132687,9.923e-05,2]
[423153551,1779895838000,-500.0,9.928e-05,2]
[423153528,1779895838000,-500.0,9.923e-05,2]
[423153469,1779895838000,-500.0,9.923e-05,2]
[423153530,1779895838000,-500.31529146,9.923e-05,2]
[423153474,1779895838000,-500.0,9.923e-05,2]
[423153463,1779895838000,-286.41500193,9.89e-05,2]
[423153483,1779895838000,-500.0,9.923e-05,2]
[423153485,1779895838000,-500.0,9.923e-05,2]
[423153489,1779895838000,-500.0,9.923e-05,2]
[423153491,1779895838000,-500.0,9.923e-05,2]
[423153495,1779895838000,-500.0,9.923e-05,2]
[423153493,1779895838000,-500.0,9.923e-05,2]
[423153497,1779895838000,-623.93,9.923e-05,2]
[423153487,1779895838000,-500.0,9.923e-05,2]
[423153500,1779895838000,-500.0,9.923e-05,2]
[423153498,1779895838000,-470.17760644,9.923e-05,2]
[423153504,1779895838000,-500.0,9.923e-05,2]
[423153502,1779895838000,-641.21,9.923e-05,2]
[423153508,1779895838000,-500.0,9.923e-05,2]
[423153510,1779895838000,-500.0,9.923e-05,2]
[423153524,1779895838000,-500.0,9.923e-05,2]
[423153512,1779895838000,-500.0,9.923e-05,2]
[423153506,1779895838000,-500.0,9.923e-05,2]
[423153522,1779895838000,-499.47667092,9.923e-05,2]
[423153526,1779895838000,-500.0,9.923e-05,2]
[423153608,1779895839000,-500.0,9.928e-05,2]
[423153606,1779895839000,-500.75767198,9.928e-05,2]
[423153610,1779895839000,-500.0,9.928e-05,2]
[423153614,1779895839000,-500.43476969,9.928e-05,2]
[423153616,1779895839000,-500.0,9.928e-05,2]
[423153623,1779895839000,-500.37085642,9.928e-05,2]
[423153612,1779895839000,-500.36280317,9.928e-05,2]
[423153626,1779895839000,-500.0,9.928e-05,2]
[423153627,1779895839000,-500.26391712,9.928e-05,2]
[423153604,1779895839000,-500.0,9.928e-05,2]
[423153619,1779895839000,-500.0,9.928e-05,2]
[423153618,1779895839000,-500.0,9.928e-05,2]
[423153601,1779895839000,-567.36652232,9.928e-05,2]
[423153570,1779895839000,-500.0,9.928e-05,2]
[423153598,1779895839000,-500.0,9.928e-05,2]
[423153595,1779895839000,-500.61456742,9.928e-05,2]
[423153593,1779895839000,-500.0,9.928e-05,2]
[423153591,1779895839000,-500.0,9.928e-05,2]
[423153587,1779895839000,-500.98329675,9.928e-05,2]
[423153589,1779895839000,-500.0,9.928e-05,2]
[423153574,1779895839000,-500.0,9.928e-05,2]
[423153585,1779895839000,-500.0,9.928e-05,2]
[423153572,1779895839000,-501.04468815,9.928e-05,2]
[423153568,1779895839000,-500.0,9.928e-05,2]
[423153578,1779895839000,-495.0,9.928e-05,2]
[423153580,1779895839000,-500.55069225,9.928e-05,2]
[423153576,1779895839000,-424.70818865,9.928e-05,2]
[423153621,1779895839000,-500.0,9.928e-05,2]
[423153599,1779895839000,-500.94277507,9.928e-05,2]
[423153629,1779895839000,-500.0,9.928e-05,2]
[423153645,1779895839000,-501.55105572,9.928e-05,2]
[423153632,1779895839000,-500.0,9.928e-05,2]
[423153634,1779895839000,-500.0,9.928e-05,2]
[423153692,1779895839000,-304.74534432,9.928e-05,2]
[423153690,1779895839000,-333.72990521,9.928e-05,2]
[423153688,1779895839000,-167.30098897,9.928e-05,2]
[423153686,1779895839000,-500.0,9.928e-05,2]
[423153684,1779895839000,-503.45618461,9.928e-05,2]
[423153682,1779895839000,-500.0,9.928e-05,2]
[423153671,1779895839000,-500.0,9.928e-05,2]
[423153678,1779895839000,-500.60145046,9.928e-05,2]
[423153669,1779895839000,-501.643361,9.928e-05,2]
[423153672,1779895839000,-501.90586945,9.928e-05,2]
[423153680,1779895839000,-500.0,9.928e-05,2]
[423153676,1779895839000,-500.33451948,9.928e-05,2]
[423153665,1779895839000,-500.0,9.928e-05,2]
[423153667,1779895839000,-504.61677003,9.928e-05,2]
[423153663,1779895839000,-556.47,9.928e-05,2]
[423153636,1779895839000,-501.8695967,9.928e-05,2]
[423153674,1779895839000,-476.0575199,9.928e-05,2]
[423153641,1779895839000,-321.01133525,9.928e-05,2]
[423153640,1779895839000,-512.0578181,9.928e-05,2]
[423153643,1779895839000,-500.0,9.928e-05,2]
[423153647,1779895839000,-510.65010156,9.928e-05,2]
[423153653,1779895839000,-500.0,9.928e-05,2]
[423153638,1779895839000,-500.0,9.928e-05,2]
[423153650,1779895839000,-500.0,9.928e-05,2]
[423153652,1779895839000,-421.93590187,9.928e-05,2]
[423153655,1779895839000,-500.0,9.928e-05,2]
[423153657,1779895839000,-224.07,9.928e-05,2]
[423153659,1779895839000,-501.6808672,9.928e-05,2]
[423153661,1779895839000,-503.36622058,9.928e-05,2]
[423153845,1779895840000,-501.61429374,9.928e-05,2]
[423153835,1779895840000,-500.0,9.928e-05,2]
[423153834,1779895840000,-504.09303592,9.928e-05,2]
[423153841,1779895840000,-500.0,9.928e-05,2]
[423153842,1779895840000,-501.09948727,9.928e-05,2]
[423153837,1779895840000,-501.59952013,9.928e-05,2]
[423153846,1779895840000,-169.50639174,9.928e-05,2]
[423153848,1779895840000,-500.0,9.928e-05,2]
[423153850,1779895840000,-500.0,9.928e-05,2]
[423153861,1779895840000,-503.14430188,9.928e-05,2]
[423153859,1779895840000,-324.20602532,9.928e-05,2]
[423153852,1779895840000,-500.0,9.928e-05,2]
[423153853,1779895840000,-500.0,9.928e-05,2]
[423153839,1779895840000,-501.5055505,9.928e-05,2]
[423153857,1779895840000,-178.25084398,9.928e-05,2]
[423153828,1779895840000,-500.77700892,9.928e-05,2]
[423153817,1779895840000,-500.0,9.928e-05,2]
[423153826,1779895840000,-503.49346695,9.928e-05,2]
[423153802,1779895840000,-502.09701653,9.928e-05,2]
[423153813,1779895840000,-500.0,9.928e-05,2]
[423153819,1779895840000,-500.64541376,9.928e-05,2]
[423153815,1779895840000,-500.0,9.928e-05,2]
[423153820,1779895840000,-500.84440584,9.928e-05,2]
[423153806,1779895840000,-501.169022,9.928e-05,2]
[423153830,1779895840000,-500.0,9.928e-05,2]
[423153807,1779895840000,-501.8904912,9.928e-05,2]
[423153804,1779895840000,-500.0,9.928e-05,2]
[423153801,1779895840000,-195.70972603,9.928e-05,2]
[423153809,1779895840000,-501.54089256,9.928e-05,2]
[423153822,1779895840000,-501.55669434,9.928e-05,2]
[423153824,1779895840000,-501.26179018,9.928e-05,2]
[423153832,1779895840000,-500.0,9.928e-05,2]
[423153811,1779895840000,-501.5487034,9.928e-05,2]
[423153864,1779895840000,-500.52181117,9.928e-05,2]
[423153855,1779895840000,-501.79624502,9.928e-05,2]
[423153866,1779895840000,-500.0,9.928e-05,2]
[423153913,1779895840000,-500.0,9.929e-05,2]
[423153912,1779895840000,-500.0,9.929e-05,2]
[423153905,1779895840000,-500.0,9.928e-05,2]
[423153910,1779895840000,-500.0,9.929e-05,2]
[423153903,1779895840000,-500.0,9.928e-05,2]
[423153901,1779895840000,-500.48909164,9.928e-05,2]
[423153908,1779895840000,-500.96378544,9.928e-05,2]
[423153915,1779895840000,-500.0,9.929e-05,2]
[423153917,1779895840000,-437.88,9.929e-05,2]
[423153919,1779895840000,-545.22912776,9.929e-05,2]
[423153921,1779895840000,-500.83054437,9.93e-05,2]
[423153927,1779895840000,-500.0,9.93e-05,2]
[423153925,1779895840000,-500.0,9.93e-05,2]
[423153863,1779895840000,-500.0,9.928e-05,2]
[423153923,1779895840000,-503.59248108,9.93e-05,2]
[423153899,1779895840000,-500.0,9.928e-05,2]
[423153929,1779895840000,-477.30890514,9.93e-05,2]
[423153896,1779895840000,-500.79095356,9.928e-05,2]
[423153898,1779895840000,-500.0,9.928e-05,2]
[423153870,1779895840000,-503.24523358,9.928e-05,2]
[423153868,1779895840000,-500.0,9.928e-05,2]
[423153874,1779895840000,-500.0,9.928e-05,2]
[423153872,1779895840000,-500.0,9.928e-05,2]
[423153876,1779895840000,-500.0,9.928e-05,2]
[423153878,1779895840000,-369.00393739,9.928e-05,2]
[423153882,1779895840000,-500.0,9.928e-05,2]
[423153890,1779895840000,-500.0,9.928e-05,2]
[423153884,1779895840000,-508.19117256,9.928e-05,2]
[423153880,1779895840000,-500.0,9.928e-05,2]
[423153888,1779895840000,-524.60262911,9.928e-05,2]
[423153894,1779895840000,-500.0,9.928e-05,2]
[423153892,1779895840000,-500.0,9.928e-05,2]
[423153886,1779895840000,-500.0,9.928e-05,2]
[423154309,1779895843000,-634.79500708,9.93e-05,2]
[423154304,1779895843000,-326.55877297,9.928e-05,2]
[423154311,1779895843000,-406.32314486,9.93e-05,2]
[423154307,1779895843000,-155.24765227,9.928e-05,2]
[423154315,1779895843000,-500.0,9.93e-05,2]
[423154317,1779895843000,-500.0,9.93e-05,2]
[423154318,1779895843000,-500.0,9.93e-05,2]
[423154313,1779895843000,-500.0,9.93e-05,2]
[423154322,1779895844000,-490.0,9.93e-05,2]
[423154320,1779895844000,-500.0,9.93e-05,2]
[423154329,1779895844000,-174.0187634,0.00010024,2]
[423154324,1779895844000,-500.0,9.93e-05,2]
[423154331,1779895844000,-457.9675899,0.00010024,2]
[423154334,1779895844000,-4399.1714612,0.00010024,2]
[423154335,1779895844000,-41.32836555,0.000101,2]
[423154327,1779895844000,-36335.1082381,0.00010024,2]
[423154631,1779895846000,-3627.82622994,0.00010149,2]
[423154636,1779895846000,-458.47,0.00010197,2]
[423154638,1779895846000,-500.0,0.00010202,2]
[423154642,1779895846000,-213.21,0.00010202,2]
[423154633,1779895846000,-500.0,0.00010197,2]
[423154635,1779895846000,-170.04,0.00010197,2]
[423154626,1779895846000,-823.0,0.0001011,2]
[423154620,1779895846000,-500.0,0.000101,2]
[423154628,1779895846000,-1268.43361906,0.00010149,2]
[423154622,1779895846000,-534.04,0.000101,2]
[423154624,1779895846000,-174.31,0.00010101,2]
[423154645,1779895846000,-502.67051564,0.00010202,2]
[423154619,1779895846000,-458.67163445,0.000101,2]
[423154646,1779895846000,-504.71178773,0.00010202,2]
[423154673,1779895846000,-500.50709778,0.00010204,2]
[423154640,1779895846000,-500.0,0.00010202,2]
[423154650,1779895846000,-500.0,0.00010202,2]
[423154675,1779895846000,-18132.41433821,0.00010206,2]
[423154662,1779895846000,-500.0,0.00010202,2]
[423154661,1779895846000,-500.0,0.00010202,2]
[423154670,1779895846000,-500.0,0.00010204,2]
[423154664,1779895846000,-500.0,0.00010202,2]
[423154671,1779895846000,-500.0,0.00010204,2]
[423154666,1779895846000,-500.0,0.00010203,2]
[423154659,1779895846000,-581.17771539,0.00010202,2]
[423154656,1779895846000,-500.93474042,0.00010202,2]
[423154667,1779895846000,-498.09430737,0.00010203,2]
[423154652,1779895846000,-501.68595189,0.00010202,2]
[423154648,1779895846000,-501.12205853,0.00010202,2]
[423156332,1779897038000,-500.0,8.356e-05,2]
[423156326,1779897038000,-500.0,8.356e-05,2]
[423156322,1779897038000,-500.0,8.356e-05,2]
[423156330,1779897038000,-500.0,8.356e-05,2]
[423156320,1779897038000,-500.0,8.356e-05,2]
[423156342,1779897038000,-500.0,8.629e-05,2]
[423156336,1779897038000,-2387.63668487,8.545e-05,2]
[423156324,1779897038000,-500.0,8.356e-05,2]
[423156338,1779897038000,-183.49,8.629e-05,2]
[423156340,1779897038000,-500.0,8.629e-05,2]
[423156328,1779897038000,-502.0304904,8.356e-05,2]
[423156352,1779897038000,-500.0,8.63e-05,2]
[423156354,1779897038000,-500.0,8.63e-05,2]
[423156334,1779897038000,-414.97133167,8.356e-05,2]
[423156318,1779897038000,-500.0,8.356e-05,2]
[423156301,1779897038000,-565.18865846,8.355e-05,2]
[423156311,1779897038000,-500.0,8.355e-05,2]
[423156348,1779897038000,-501.7397248,8.629e-05,2]
[423156286,1779897038000,-201.02304196,7.993e-05,2]
[423156290,1779897038000,-300.0,8.354e-05,2]
[423156288,1779897038000,-2000.0,8.219e-05,2]
[423156284,1779897038000,-5000.0,7.788e-05,2]
[423156291,1779897038000,-334.1182415,8.354e-05,2]
[423156315,1779897038000,-500.0,8.356e-05,2]
[423156303,1779897038000,-500.0,8.355e-05,2]
[423156305,1779897038000,-500.0,8.355e-05,2]
[423156295,1779897038000,-500.27086864,8.355e-05,2]
[423156297,1779897038000,-500.0,8.355e-05,2]
[423156309,1779897038000,-500.0,8.355e-05,2]
[423156307,1779897038000,-500.0,8.355e-05,2]
[423156313,1779897038000,-443.88,8.356e-05,2]
[423156299,1779897038000,-500.0,8.355e-05,2]
[423156356,1779897038000,-500.0,8.63e-05,2]
[423156293,1779897038000,-170.3800455,8.354e-05,2]
[423156344,1779897038000,-500.0,8.629e-05,2]
[423156392,1779897038000,-500.0,9.117e-05,2]
[423156415,1779897038000,-500.0,9.241e-05,2]
[423156401,1779897038000,-500.0,9.117e-05,2]
[423156405,1779897038000,-316.41864667,9.117e-05,2]
[423156409,1779897038000,-420.0,9.189e-05,2]
[423156407,1779897038000,-183.58135333,9.117e-05,2]
[423156388,1779897038000,-500.0,9.117e-05,2]
[423156399,1779897038000,-500.0,9.117e-05,2]
[423156393,1779897038000,-500.0,9.117e-05,2]
[423156403,1779897038000,-500.0,9.117e-05,2]
[423156395,1779897038000,-500.0,9.117e-05,2]
[423156411,1779897038000,-415.87442346,9.241e-05,2]
[423156417,1779897038000,-500.0,9.241e-05,2]
[423156350,1779897038000,-500.0,8.629e-05,2]
[423156397,1779897038000,-500.0,9.117e-05,2]
[423156390,1779897038000,-500.0,9.117e-05,2]
[423156413,1779897038000,-500.0,9.241e-05,2]
[423156382,1779897038000,-500.91927698,9.117e-05,2]
[423156381,1779897038000,-500.0,9.117e-05,2]
[423156358,1779897038000,-500.0,8.63e-05,2]
[423156367,1779897038000,-500.8442278,8.903e-05,2]
[423156363,1779897038000,-375.97695515,8.903e-05,2]
[423156362,1779897038000,-3264.173232,8.869e-05,2]
[423156365,1779897038000,-500.0,8.903e-05,2]
[423156373,1779897038000,-500.0,9.117e-05,2]
[423156360,1779897038000,-500.0,8.63e-05,2]
[423156375,1779897038000,-500.0,9.117e-05,2]
[423156386,1779897038000,-500.0,9.117e-05,2]
[423156371,1779897038000,-500.0,9.117e-05,2]
[423156384,1779897038000,-500.0,9.117e-05,2]
[423156346,1779897038000,-500.83338792,8.629e-05,2]
[423156379,1779897038000,-500.0,9.117e-05,2]
[423156377,1779897038000,-500.0,9.117e-05,2]
[423156369,1779897038000,-500.0,8.904e-05,2]
[423156501,1779897039000,-503.02189017,9.527e-05,2]
[423156479,1779897039000,-500.0,9.527e-05,2]
[423156491,1779897039000,-194.18755242,9.527e-05,2]
[423156483,1779897039000,-500.0,9.527e-05,2]
[423156495,1779897039000,-598.77194751,9.527e-05,2]
[423156493,1779897039000,-500.0,9.527e-05,2]
[423156503,1779897039000,-500.0,9.527e-05,2]
[423156497,1779897039000,-500.0,9.527e-05,2]
[423156509,1779897039000,-500.0,9.527e-05,2]
[423156499,1779897039000,-505.66004785,9.527e-05,2]
[423156481,1779897039000,-500.0,9.527e-05,2]
[423156485,1779897039000,-616.99032205,9.527e-05,2]
[423156519,1779897039000,-500.0,9.527e-05,2]
[423156506,1779897039000,-500.0,9.527e-05,2]
[423156512,1779897039000,-500.0,9.527e-05,2]
[423156513,1779897039000,-500.0,9.527e-05,2]
[423156516,1779897039000,-547.88,9.527e-05,2]
[423156528,1779897039000,-634.24,9.527e-05,2]
[423156517,1779897039000,-500.0,9.527e-05,2]
[423156530,1779897039000,-500.0,9.527e-05,2]
[423156534,1779897039000,-590.0,9.527e-05,2]
[423156525,1779897039000,-500.0,9.527e-05,2]
[423156521,1779897039000,-500.0,9.527e-05,2]
[423156532,1779897039000,-350.69967993,9.527e-05,2]
[423156523,1779897039000,-500.0,9.527e-05,2]
[423156489,1779897039000,-446.67646493,9.527e-05,2]
[423156507,1779897039000,-500.0,9.527e-05,2]
[423156487,1779897039000,-53.32353507,9.527e-05,2]
[423156458,1779897039000,-500.0,9.391e-05,2]
[423156475,1779897039000,-500.0,9.527e-05,2]
[423156419,1779897039000,-500.0,9.241e-05,2]
[423156421,1779897039000,-500.0,9.241e-05,2]
[423156424,1779897039000,-500.0,9.241e-05,2]
[423156427,1779897039000,-500.0,9.241e-05,2]
[423156425,1779897039000,-500.0,9.241e-05,2]
[423156437,1779897039000,-500.0,9.391e-05,2]
[423156439,1779897039000,-500.0,9.391e-05,2]
[423156429,1779897039000,-500.0,9.241e-05,2]
[423156441,1779897039000,-500.0,9.391e-05,2]
[423156431,1779897039000,-500.0,9.241e-05,2]
[423156433,1779897039000,-3264.173232,9.242e-05,2]
[423156435,1779897039000,-430.80433548,9.374e-05,2]
[423156443,1779897039000,-500.0,9.391e-05,2]
[423156477,1779897039000,-500.0,9.527e-05,2]
[423156536,1779897039000,-905.35576515,9.528e-05,2]
[423156463,1779897039000,-500.0,9.391e-05,2]
[423156444,1779897039000,-500.0,9.391e-05,2]
[423156460,1779897039000,-500.0,9.391e-05,2]
[423156462,1779897039000,-500.0,9.391e-05,2]
[423156446,1779897039000,-500.0,9.391e-05,2]
[423156465,1779897039000,-500.0,9.391e-05,2]
[423156454,1779897039000,-251.852216,9.391e-05,2]
[423156452,1779897039000,-248.147784,9.391e-05,2]
[423156450,1779897039000,-500.0,9.391e-05,2]
[423156467,1779897039000,-500.0,9.391e-05,2]
[423156469,1779897039000,-500.0,9.391e-05,2]
[423156471,1779897039000,-500.0,9.391e-05,2]
[423156474,1779897039000,-500.0,9.391e-05,2]
[423156448,1779897039000,-500.0,9.391e-05,2]
[423156538,1779897039000,-297735.53736977,9.528e-05,2]
[423156565,1779897039000,-500.0,9.627e-05,2]
[423156542,1779897039000,-28032.70360123,9.618e-05,2]
[423156605,1779897039000,-500.0,9.627e-05,2]
[423156603,1779897039000,-500.0,9.627e-05,2]
[423156599,1779897039000,-500.0,9.627e-05,2]
[423156601,1779897039000,-500.0,9.627e-05,2]
[423156623,1779897039000,-267.0,9.665e-05,2]
[423156625,1779897039000,-500.0,9.665e-05,2]
[423156627,1779897039000,-500.0,9.665e-05,2]
[423156629,1779897039000,-500.0,9.665e-05,2]
[423156613,1779897039000,-500.58784063,9.627e-05,2]
[423156615,1779897039000,-500.0,9.627e-05,2]
[423156611,1779897039000,-500.0,9.627e-05,2]
[423156619,1779897039000,-500.0,9.627e-05,2]
[423156631,1779897039000,-500.0,9.665e-05,2]
[423156621,1779897039000,-500.0,9.627e-05,2]
[423156633,1779897039000,-629.39,9.665e-05,2]
[423156617,1779897039000,-725.2984,9.627e-05,2]
[423156635,1779897039000,-643.43,9.665e-05,2]
[423156637,1779897039000,-500.0,9.665e-05,2]
[423156641,1779897039000,-648.61075624,9.665e-05,2]
[423156643,1779897039000,-500.0,9.665e-05,2]
[423156650,1779897039000,-500.0,9.665e-05,2]